Cogmind - Beta 14 @@@ ROGUE MODE // 2025.04.23 @ 22:34:02 Player: jumpy Result: Destroyed by Proton Bomb Trap Performance ------------- Evolutions (4) 2000 Regions Visited (5) 1000 Robots Destroyed (55) 275 Value Destroyed (1713) 1713 Prototype IDs (2) 40 Alien Tech Used (0) 0 Bonus (0) 0 TOTAL SCORE: 5028 Bonus ------- None Cogmind --------- Core Integrity 0/850 Matter 279/300 Energy 100/100 System Corruption 20% Temperature Cool (9) Movement Core (50) Location -6/Factory Parts ------- > --- POWER (1) -------- (None) > --- PROPULSION (4) --- (None) > --- UTILITY (8) ------ Enhanced Optical Array Advanced Signal Interpreter Hacking Suite > --- WEAPON (2) ------- (None) > --- INVENTORY (5) ---- Advanced ECM Suite Gatling Laser Peak State ------------ > --- POWER ------------ Reinforced Deuterium Engine > --- PROPULSION ------- Carbon-fiber Leg Armored Leg Armored Leg > --- UTILITY ---------- Advanced Sensor Array Advanced Signal Interpreter Improved Light Armor Plating Hacking Suite > --- WEAPON ----------- Heavy Plasma Cannon Mace > --- INVENTORY -------- Armored Wheel Seismic Detector Advanced ECM Suite Gatling Laser [Rating: 41] Favorites ----------- Power Ion Engine Engine Ion Engine Power Core Light Nuclear Core Propulsion Aluminum Leg Treads Improved Medium Treads Leg Aluminum Leg Wheel Armored Huge Wheel Hover Unit Backup Propulsion I Flight Unit Cesium-ion Thruster Utility Seismic Detector Device Seismic Detector Storage Small Storage Unit Processor Advanced Signal Interpreter Hackware Hacking Suite Protection Improved Medium Armor Plating Weapon Small Laser Energy Gun Small Laser Energy Cannon Advanced Beam Cannon Ballistic Gun Assault Rifle Ballistic Cannon Gauss Cannon Impact Weapon Mace Slashing Weapon Blade Saw Build | -11 -10 -9 -8 -7 -6 ------- Run | Yrd Mat Mat Mat Fac Fac Slots Evolved 8 | . . 2 2 2 2 Power . | . . . . . . Propulsion 2 | . . 2 . . . Utility 6 | . . . 2 2 2 Weapon . | . . . . . . Parts Attached 66 | 8 3 3 14 13 25 Power 9 | 1 1 . . 1 6 Engine 7 | 1 1 . . 1 4 Core 2 | . . . . . 2 Reactor . | . . . . . . Propulsion 21 | 2 1 2 4 5 7 Treads 3 | . . . . 2 1 Leg 9 | 2 1 2 . . 4 Wheel 4 | . . . . 3 1 Hover 1 | . . . . . 1 Flight 4 | . . . 4 . . Utility 20 | 2 . . 7 4 7 Device 6 | 1 . . 2 1 2 Storage 6 | 1 . . 4 1 . Processor 3 | . . . . . 3 Hackware 1 | . . . . . 1 Protection 4 | . . . 1 2 1 Artifact . | . . . . . . Weapon 16 | 3 1 1 3 3 5 Energy Gun 9 | 2 1 1 2 1 2 Energy Cannon 2 | . . . 1 . 1 Ballistic Gun 1 | 1 . . . . . Ballistic Cannon 2 | . . . . 2 . Launcher . | . . . . . . Special Weapon . | . . . . . . Impact Weapon 1 | . . . . . 1 Slashing Weapon 1 | . . . . . 1 Piercing Weapon . | . . . . . . Special Melee Weapon . | . . . . . . Unidentified Prototypes 2 | . . . 2 . . Parts Lost 36 | . . . 2 10 24 Power 7 | . . . 1 1 5 Propulsion 11 | . . . 1 3 7 Utility 10 | . . . . 5 5 Weapon 8 | . . . . 1 7 Highest Loss Streak 7 | . . . 1 6 7 To Critical Strikes . | . . . . . . Average Slot Usage (%) 65 | . 100 100 82 56 43 Engine 6 | . 14 11 8 4 4 Leg 13 | . 28 44 14 . 12 Wheel 1 | . . . . 6 . Flight 4 | . . . 21 1 . Device 9 | . 14 11 10 14 1 Storage 8 | . 14 11 9 14 . Processor 1 | . . . . . 3 Protection 3 | . . . 4 4 3 Energy Gun 9 | . 28 22 8 5 3 Energy Cannon 2 | . . . 6 . 2 Impact Weapon 1 | . . . . . 3 Peak Build Rating 41 | 7 7 9 28 32 41 Average Rating 17 | 5 7 8 19 20 24 On Entrance 6 | . 7 7 9 15 . Naked Turns 6 | . . . . 6 . Heaviest Build 47 | 14 14 13 42 47 31 Greatest Support 47 | 20 20 40 40 44 47 Greatest Overweight (x) 8 | . . . 8 7 1 Average Overweight (x) . | . . . . . . Largest Inventory Capacity 15 | 8 8 8 15 10 5 Average Capacity 8 | 7 8 8 11 9 5 Most Carried 12 | 5 8 6 12 8 5 Average Carried 5 | 3 7 5 8 3 3 Final Capacity 8 | 8 8 8 8 5 5 Final Carried 8 | 5 7 5 8 4 2 Class Distribution -------------------- 74% | Mutant 22% | Scavenger-Mutant Dominant Class ---------------- Mutant | -10/Materials Scavenger-Mutant | -9/Materials Mutant | -8/Materials Mutant | -7/Factory Mutant | -6/Factory Resources | -11 -10 -9 -8 -7 -6 ----------- Run | Yrd Mat Mat Mat Fac Fac Matter Collected 1035 | 280 20 40 . 287 408 Remotely . | . . . . . . Salvage Created 1826 | 173 247 91 93 447 775 Parts 97 | 19 17 5 11 19 26 Haulers Intercepted . | . . . . . . Recyclers Shooed 4 | 1 . . . 2 1 Parts Field Recycled . | . . . . . . Retrieved Matter . | . . . . . . Parts Self-Destructed . | . . . . . . Prevented . | . . . . . . Kills | -11 -10 -9 -8 -7 -6 ------- Run | Yrd Mat Mat Mat Fac Fac Combat Hostiles Destroyed 45 | . 9 2 6 13 15 Melee 1 | . . . . . 1 Guns 21 | . 9 2 3 1 6 Cannons 17 | . . . 3 12 2 AOE 1 | . . . . . 1 Classes Destroyed 11 | 2 2 1 . 3 3 Worker 1 | 1 . . . . . Builder 1 | . . . . . 1 Tunneler 7 | 7 . . . . . Recycler 1 | . . . . 1 . Swarmer 17 | . 5 . 6 3 3 Grunt 16 | . 4 1 . 7 4 Brawler 3 | . . . . . 3 Duelist 2 | . . . . . 2 Sentry 3 | . . 1 . . 2 Hunter 1 | . . . . 1 . Programmer 3 | . . . . 2 1 Best Kill Streak 5 | 3 3 1 4 5 4 Combat Bots Only 5 | . 3 1 4 5 4 Max Kills in Single Turn 1 | 1 1 1 1 1 1 Gunslinging . | . . . . . . Exploded 1 | . . . . . 1 Melee 1 | . . . . . 1 Uniques/NPCs Destroyed . | . . . . . . Combat | -11 -10 -9 -8 -7 -6 -------- Run | Yrd Mat Mat Mat Fac Fac Hostile Shots Fired 570 | . 43 10 71 149 297 Missed 151 | . 11 1 23 22 94 Damage Taken 6059 | . 296 115 420 1931 3297 Core 1407 | . 39 27 43 435 863 Absorbed by Shields . | . . . . . . Core Remaining (%) 81 | 100 84 93 92 37 . Volleys Fired 191 | 17 27 7 19 63 58 Largest 2 | 2 2 2 1 2 2 Hottest 99 | 90 80 80 68 98 99 Shots Fired 276 | 34 54 14 19 86 69 Gun 186 | 34 54 14 5 29 50 Cannon 90 | . . . 14 57 19 Launcher . | . . . . . . Special . | . . . . . . Kinetic 57 | . . . . 57 . Thermal 214 | 34 54 14 14 29 69 Explosive . | . . . . . . Electromagnetic 5 | . . . 5 . . Robot Hit Streak 20 | 8 14 20 3 10 12 Robot Miss Streak 5 | 2 5 2 3 2 3 Penetration Max . | . . . . . . Secondary Targets 1 | . 1 . . . . Max Gunslinging Chain 1 | . 1 . . . . Shots Hit Robots 210 | 21 33 10 11 60 75 Core Hits 85 | 9 16 4 6 24 26 Critical Kills 1 | . . . . . 1 Critical Parts Destroyed 6 | . . . . . 6 Critical Strikes 16 | . . . . 8 8 Burn 1 | . . . . . 1 Blast 8 | . . . . 8 . Smash 7 | . . . . . 7 Melee Attacks 34 | . . . . . 34 Impact 30 | . . . . . 30 Slashing 4 | . . . . . 4 Piercing . | . . . . . . Sneak Attacks . | . . . . . . Combat Hostiles . | . . . . . . Follow-up Attacks . | . . . . . . Damage Inflicted 4297 | 264 359 111 227 1602 1734 Guns 1635 | 264 359 111 43 251 607 Cannons 1891 | . . . 184 1219 488 Explosions 93 | . . . . 93 . Melee 638 | . . . . . 638 Ramming 40 | . . . . 39 1 Kinetic 1219 | . . . . 1219 . Thermal 2264 | 264 359 111 184 251 1095 Explosive 93 | . . . . 93 . Electromagnetic 43 | . . . 43 . . Impact 585 | . . . . . 585 Slashing 53 | . . . . . 53 Piercing . | . . . . . . Highest Corruption 20 | . . . . 10 20 Average Corruption 12 | . . . . 5 16 Corruption Purged . | . . . . . . Corruption Blocked . | . . . . . . Effects 38 | . . . . 8 30 Message Errors 11 | . . . . 3 8 Matter Fused 7 | . . . . 1 6 Heat Flow Errors 6 | . . . . 2 4 Energy Discharges 3 | . . . . . 3 Parts Rejected 1 | . . . . 1 . Parts Fused 1 | . . . . . 1 Data Loss (minor) 3 | . . . . . 3 Data Loss (major) 1 | . . . . . 1 Misfires 2 | . . . . 1 1 Misdirections 2 | . . . . . 2 Weapon Failures 1 | . . . . . 1 Overload Shots . | . . . . . . Overflow Damage 297 | . . . . 44 253 Projectiles 104 | . . . . 38 66 Explosions 6 | . . . . 6 . Melee 187 | . . . . . 187 Knockbacks 26 | . . . . 18 8 Impact 7 | . . . . . 7 Kinetic 17 | . . . . 17 . Secondary 2 | . . . . 1 1 Self-Inflicted Damage 15 | . . . . 15 . Shots . | . . . . . . Rammed 8 | . . . . 7 1 Targets Rammed 9 | . . . 1 7 1 Kicked 1 | . . . 1 . . Crushed . | . . . . . . Highest Temperature 459 | 112 144 63 156 459 263 Average Temperature 87 | 37 45 34 65 173 63 Received Heat Transfer 1758 | . 66 69 63 945 615 Effects 5 | . . . . 5 . Shutdowns 1 | . . . . 1 . Energy Bleed 1 | . . . . 1 . Interference 1 | . . . . 1 . Short Circuit 1 | . . . . 1 . Damage (minor) 1 | . . . . 1 . Siege Activations . | . . . . . . Robots Corrupted 4 | . . . . . 4 Combat Hostiles 4 | . . . . . 4 Parts Fried 2 | . . . . . 2 Impact Corruptions 8 | . . . . . 8 Robots Melted 1 | . . . . . 1 Combat Hostiles 1 | . . . . . 1 Parts Melted 9 | . 1 . . 1 7 Heat Transferred 5170 | 718 825 250 333 740 2304 Parts Sabotaged . | . . . . . . Parts Stolen . | . . . . . . Parts Stripped . | . . . . . . Power Chain Reactions . | . . . . . . Alert | -11 -10 -9 -8 -7 -6 ------- Run | Yrd Mat Mat Mat Fac Fac Peak Influence 358 | 40 298 205 216 324 358 Initial 151 | . 26 125 86 25 151 Average 148 | 18 116 165 140 94 251 Maximum Alert Level 1 | . 1 1 1 1 1 Low Security (%) 65 | 100 84 81 60 81 34 Level 1 34 | . 15 18 39 18 65 Level 2 . | . . . . . . Level 3 . | . . . . . . Level 4 . | . . . . . . Level 5 . | . . . . . . High Security . | . . . . . . Max Security . | . . . . . . Squads Dispatched 11 | . . 1 . 5 5 Investigation . | . . . . . . Extermination 3 | . . . . 2 1 Reinforcement 5 | . . 1 . 3 1 Assault . | . . . . . . Garrison 3 | . . . . . 3 Intercept . | . . . . . . Searches Triggered . | . . . . . . Construction Impeded 2 | . . . . 1 1 Haulers Reinforced . | . . . . . . Active Scanning Responses . | . . . . . . Cargo Convoy Interrupts . | . . . . . . Stealth | -11 -10 -9 -8 -7 -6 --------- Run | Yrd Mat Mat Mat Fac Fac Distress Signals 10 | . 2 1 . 5 2 Communications Jammed . | . . . . . . Distress Signals . | . . . . . . Times Spotted 89 | . 12 4 17 25 31 Peak Tracking Total 8 | . 6 3 8 5 6 Tactical Retreats 10 | . 1 . . 4 5 Traps | -11 -10 -9 -8 -7 -6 ------- Run | Yrd Mat Mat Mat Fac Fac Traps Triggered 1 | . . . . . 1 Indirectly . | . . . . . . Trap Hack Attempts . | . . . . . . Triggered . | . . . . . . Disarmed . | . . . . . . Reprogrammed . | . . . . . . Reused . | . . . . . . Traps Extracted . | . . . . . . Installed . | . . . . . . Triggered 1 | . . . . . 1 Machines | -11 -10 -9 -8 -7 -6 ---------- Run | Yrd Mat Mat Mat Fac Fac Machines Disabled 2 | . . . . 1 1 Max in Single Turn 1 | . . . . 1 1 Machines Repaired . | . . . . . . Machines Dismantled . | . . . . . . Machines Sabotaged . | . . . . . . Overloaded Fab Kills . | . . . . . . Hacking | -11 -10 -9 -8 -7 -6 --------- Run | Yrd Mat Mat Mat Fac Fac Machines Accessed 5 | . 1 . 1 1 2 Terminals 1 | . 1 . . . . Fabricators 1 | . . . . . 1 Repair Stations 1 | . . . . . 1 Recycling Units . | . . . . . . Scanalyzers 1 | . . . . 1 . Garrison Access 1 | . . . 1 . . Total Hacks 11 | . 1 . 2 2 6 Successful 6 | . 1 . . 2 3 Failed 5 | . . . 2 . 3 Catastrophic 1 | . . . . . 1 Database Lockouts . | . . . . . . Manual 1 | . 1 . . . . Terminals 1 | . 1 . . . . Fabricators 2 | . . . . . 2 Repair Stations 4 | . . . . . 4 Recycling Units . | . . . . . . Scanalyzers 2 | . . . . 2 . Garrison Access 2 | . . . 2 . . Terminal Hacks 1 | . 1 . . . . Robot Schematic 1 | . 1 . . . . Fabricator Hacks 1 | . . . . . 1 Load Schematic 1 | . . . . . 1 Repair Station Hacks 2 | . . . . . 2 Refit 2 | . . . . . 2 Recycling Unit Hacks . | . . . . . . Scanalyzer 2 | . . . . 2 . Insert Component 1 | . . . . 1 . Analyze 1 | . . . . 1 . Garrison Access Hacks . | . . . . . . Unauthorized Hacks . | . . . . . . Terminals . | . . . . . . Fabricators . | . . . . . . Repair Stations . | . . . . . . Recycling Units . | . . . . . . Scanalyzers . | . . . . . . Garrison Access . | . . . . . . Data Cores Recovered . | . . . . . . Used . | . . . . . . Hacking Detections 3 | . . . 1 . 2 Full Trace Events . | . . . . . . Feedback Events . | . . . . . . Feedback Blocked . | . . . . . . Robot Schematics Acquired 1 | . 1 . . . . Robots Built . | . . . . . . Authchips . | . . . . . . Time . | . . . . . . Total Robot Build Rating . | . . . . . . Part Schematics Acquired 1 | . . . . 1 . Parts Built . | . . . . . . Authchips . | . . . . . . Time . | . . . . . . Total Part Build Rating . | . . . . . . Parts Repaired . | . . . . . . Time . | . . . . . . Parts Recycled . | . . . . . . Recycled Matter . | . . . . . . Retrieved Matter . | . . . . . . Retrieved Components . | . . . . . . Parts Scanalyzed 1 | . . . . 1 . Part Schematics Acquired 1 | . . . . 1 . Parts Damaged . | . . . . . . Bothacking | -11 -10 -9 -8 -7 -6 ------------ Run | Yrd Mat Mat Mat Fac Fac Used RIF Installer . | . . . . . . Robots Hacked . | . . . . . . Non-combat . | . . . . . . Combat . | . . . . . . Robot Hacks Applied . | . . . . . . Relay Couplers Released . | . . . . . . Fabnet Peak Effective % . | . . . . . . Robots Rewired . | . . . . . . Allies Hacked . | . . . . . . Hacks Repelled . | . . . . . . Allies | -11 -10 -9 -8 -7 -6 -------- Run | Yrd Mat Mat Mat Fac Fac Total Allies . | . . . . . . Largest Group . | . . . . . . Highest-Rated Group . | . . . . . . Highest-Rated Ally . | . . . . . . Total Orders . | . . . . . . Ally Attacks . | . . . . . . Total Damage . | . . . . . . Kills . | . . . . . . Allies Corrupted . | . . . . . . Allies Melted . | . . . . . . Intel | -11 -10 -9 -8 -7 -6 ------- Run | Yrd Mat Mat Mat Fac Fac Robot Analysis Total . | . . . . . . Derelict Logs Recovered . | . . . . . . Drone Launches . | . . . . . . Drone Recoveries . | . . . . . . Exploration | -11 -10 -9 -8 -7 -6 ------------- Run | Yrd Mat Mat Mat Fac Fac Turns Passed 2699 | 261 352 129 516 637 804 Spaces Moved 1639 | 121 193 64 420 319 522 Core 129 | 6 . . . 17 106 Treads 21 | . . . . 13 8 Legs 774 | 115 193 64 107 . 295 Wheels 335 | . . . . 263 72 Hover 41 | . . . . . 41 Flight 339 | . . . 313 26 . Fastest Speed 26 | 50 120 120 26 50 50 Average Speed 106 | 116 120 120 96 113 101 Slowest Speed 675 | 120 120 120 675 400 190 Overloaded Moves . | . . . . . . Propulsion Burnouts . | . . . . . . Robots Hopped 2 | . . . 2 . . Cave-ins Triggered . | . . . . . . Exploration Rate (%) 19 | 7 41 12 35 7 14 Regions Visited 5 Branch Regions . Pre-discovered Areas . | . . . . . . Known Exits Taken . | . . . . . . Unknown Exits Taken 5 | 1 1 1 1 1 . Scrap Searched . | . . . . . . Spaces Dug . | . . . . . . Terrain Destroyed 37 | . . . . 35 2 Melee . | . . . . . . Projectile 13 | . . . . 11 2 AOE 24 | . . . . 24 . Terrain Rammed . | . . . . . . Walls Destroyed . | . . . . . . Machines Disabled . | . . . . . . Actions | -11 -10 -9 -8 -7 -6 --------- Run | Yrd Mat Mat Mat Fac Fac Total 2247 | 204 260 102 511 508 662 Wait 243 | 51 29 28 31 91 13 Move 1630 | 120 192 63 415 318 522 Hop 2 | . . . 2 . . Pick Up 34 | 7 5 . 12 4 6 Fast Attach 37 | 6 . . 10 7 14 Attach 19 | 1 . 2 1 6 9 Detach 3 | . . . . 2 1 Swap 10 | 1 3 1 3 . 2 Drop 35 | 1 4 1 17 10 2 Fire 191 | 17 27 7 19 63 58 Melee 34 | . . . . . 34 Ram 6 | . . . . 5 1 Kick 1 | . . . 1 . . Crush 2 | . . . . 2 . Escape Stasis . | . . . . . . Rewire . | . . . . . . Trap . | . . . . . . Miscellaneous . | . . . . . . Route ------- -11/Scrapyard -10/Materials -9/Materials -8/Materials -7/Factory -6/Factory History --------- Turn | Location | Event 3 | -11/Scrapyard | Discovered new exit (range 16) 262 | -11/Scrapyard | Entered Materials 312 | -10/Materials | Build established: Mutant 605 | -10/Materials | Discovered new exit (range 7) 614 | -10/Materials | Entered another Materials area 614 | -9/Materials | Evolved 2 slots: Propulsion x2 733 | -9/Materials | Discovered new exit (range 8) 743 | -9/Materials | Entered another Materials area 743 | -8/Materials | Evolved 2 slots: Utility x2 910 | -8/Materials | Build established: Scavenger-Mutant 1249 | -8/Materials | Discovered new exit (range 9) 1259 | -8/Materials | Entered Factory 1259 | -7/Factory | Evolved 2 slots: Utility x2 1526 | -7/Factory | Build established: Mutant 1777 | -7/Factory | System corruption reached 10% 1832 | -7/Factory | Lost 6 parts (1p2n3u) 1876 | -7/Factory | Core integrity fell below 50% 1884 | -7/Factory | Discovered new exit (range 15) 1896 | -7/Factory | Entered another Factory area 1896 | -6/Factory | Evolved 2 slots: Utility x2 1921 | -6/Factory | Lost 3 parts (1n1u1w) 1986 | -6/Factory | Garrison activated, responded to threat 2051 | -6/Factory | Lost 5 parts (3p1n1w) 2119 | -6/Factory | System corruption reached 10% 2149 | -6/Factory | Lost 7 parts (1p2n2u2w) 2512 | -6/Factory | Core integrity fell below 50% 2559 | -6/Factory | Lost 3 parts (1n1u1w) 2694 | -6/Factory | Core integrity fell below 20% 2700 | -6/Factory | Destroyed by Proton Bomb Trap Last Messages --------------- 02693_ System corrupted: Heat flow error (+237). 02693_ U-05 Engineer works on Megafabricator. 02694_ K-01 Serf collects debris. 02694_ U-05 Engineer works on Megafabricator. 02696_ Slug penetrates Wall. 02697_ U-05 Engineer works on Megafabricator. 02698_ K-01 Serf collects debris. 02698_ Penetrated by Slug. 02698_ Arm. Wheel destroyed. 02698_ Penetrated by Slug. 02698_ U-05 Engineer works on Megafabricator. 02699_ Penetrated by Slug. 02699_ Arm. Leg destroyed. 02699_ Penetrated by Slug. 02699_ Blade Saw destroyed. 02699_ K-01 Serf collects debris. 02700_ Seismic Detector destroyed. 02700_ Slammed into H-66 Slayer. 02700_ Triggered Proton Bomb Trap. 02700_ A bubble of electromagnetic force engulfs the area. Map ----- +----------------------------------------------------+ | ????????????????????????????????????????## # | | ????????????????????????????????????????#### | | ????????????????????????????????? ## | | ????????????????????????????????# ## | | ????????????????????????????????# # ### | | ????????????????????????????????? ## ### | | ????????????????????????????????? """ """ ?#####?? | | ?????????????????????????#######??""" """????????? | | ?????????????????????????#""G""#???"" ?""????????? | | ?????????????????????????# " " #?????????????????? | | ????????????????????????## " " ####+############## | | ????????????????????????# | | ????????????????????????# | | ????????????????????????# R | | ????????????????????????# | | ????????????????????????# | | ????????????????????????#^ ^ #####+####### | | ????????????????????????# k #??? ?????? | | ????????????????????????# #???"""?????? | | ????????????????????????+ #?? """"????? | | ????????????????????????# #?? """"????? | | ????????????????????????#!] ! #? """" ???? | | ????????????????????????#]] #? """" ???? | | ????????????????????????#] k #] """" ??? | | ????????????????????????# # ??? | | ????????????????????????#@ k ####?????##?? | | ??????????????????????? h